bitfinex/quotes_ETHUSD_20250319
["timestamp","ask_amount","ask_price","bid_price","bid_amount"]
[1742404181346,8.89803255,2051.3,2050.9,9.75148]
[1742404181756,8.89803255,2051.3,2050.9,4.87573]
[1742404182140,8.89803255,2051.3,2050.9,9.75151]
[1742404182655,4.02298255,2051.3,2051.1,4.87542]
[1742404182955,0.7694,2051.5,2051.2,4.8751]
[1742404183957,5.6439,2051.5,2051.2,4.8751]
[1742404184159,5.6439,2051.5,2051.1,5.63582]
[1742404184327,5.6439,2051.5,2051.1,5.63567]
[1742404184666,5.6439,2051.5,2051.1,10.51099]
[1742404185661,0.7694,2051.5,2051.2,4.8751]
[1742404185861,8.89730255,2051.6,2051.2,4.8751]
[1742404186063,8.89730255,2051.6,2051.2,9.75015]
[1742404186236,8.89730255,2051.6,2051.2,4.87505]
[1742404186647,4.87456,2051.5,2051.2,4.87505]
[1742404186846,4.8748,2051.4,2051.1,5.63579]
[1742404187059,8.89778255,2051.4,2051.1,5.63579]
[1742404187260,5.40021681,2051.4,2051.0,0.99545609]
[1742404187570,5.64948,2051.3,2050.9,4.87575]
[1742404188385,5.64948,2051.3,2051.0,4.87562]
[1742404188543,10.52465,2051.3,2050.9,7.87588]
[1742404188747,5.64948,2051.3,2050.9,12.75161]
[1742404189067,5.64948,2051.3,2050.9,7.87573]
[1742404189430,10.52462,2051.3,2050.9,7.87573]
[1742404189634,5.64948,2051.3,2050.9,4.87573]
[1742404189836,10.52464,2051.3,2050.9,4.87573]
[1742404190346,5.64948,2051.3,2050.9,9.75149]
[1742404190561,4.87522,2051.2,2050.9,4.87573]
[1742404190758,8.89820255,2051.2,2050.9,4.87573]
[1742404191072,13.77356255,2051.2,2050.8,12.74591367]
[1742404191238,8.89820255,2051.2,2050.8,6.68591367]
[1742404191442,8.89820255,2051.2,2050.8,11.56190367]
[1742404191874,8.89820255,2051.2,2050.8,14.10660404]
[1742404192243,5.64937,2051.3,2051.0,4.87564]
[1742404192445,8.89777255,2051.4,2051.0,4.87555]
[1742404192682,4.02298255,2051.4,2051.1,4.87531]
[1742404192876,10.526,2051.5,2051.1,4.87531]
[1742404193051,10.526,2051.5,2051.2,4.8751]
[1742404193052,4.826,2051.5,2051.2,4.8751]
[1742404193255,8.89731255,2051.6,2051.3,4.87495]
[1742404193256,4.87433,2051.6,2051.3,4.87495]
[1742404193777,8.89731255,2051.6,2051.2,4.8751]
[1742404193983,8.89731255,2051.6,2051.2,9.75013]
[1742404194170,8.89731255,2051.6,2051.2,9.75012]
[1742404194371,8.89731255,2051.6,2051.2,10.50760768]
[1742404194572,8.89731255,2051.6,2051.2,5.63250768]
[1742404194886,4.87461,2051.5,2051.2,0.75748768]
[1742404195280,8.89770255,2051.4,2051.0,4.87554]
[1742404195473,9.68680255,2051.4,2051.0,4.87554]
[1742404195677,14.56168255,2051.4,2051.0,4.8755]
[1742404195849,4.875,2051.3,2050.9,5.66126]
[1742404196186,8.89832255,2051.2,2050.9,3.0]
[1742404196484,13.77371255,2051.2,2050.9,3.0]
[1742404196682,8.89832255,2051.2,2050.9,7.87588]
[1742404196851,8.89832255,2051.2,2050.9,4.87588]
[1742404197753,4.87569,2051.0,2050.8,2.54479037]
[1742404197953,9.66167255,2051.0,2050.8,2.54479037]
[1742404198176,4.87602,2050.9,2050.6,10.93658]
[1742404198366,4.87602,2050.9,2050.6,4.87658]
[1742404199493,14.53753255,2051.0,2050.6,4.87658]
[1742404200696,4.87591,2050.9,2050.6,4.87658]
[1742404200894,9.66167255,2051.0,2050.6,11.69381487]
[1742404201068,4.78598255,2051.0,2050.6,4.94078487]
[1742404201256,4.87604,2050.9,2050.6,4.94078487]
[1742404201453,4.87604,2050.9,2050.6,9.81739487]
[1742404201658,9.66165255,2051.0,2050.6,14.69382487]
[1742404201891,14.53750255,2051.0,2050.7,1.55253249]
[1742404202097,14.53750255,2051.0,2050.6,7.87643]
[1742404202265,9.75204,2050.9,2050.5,5.70832]
[1742404202594,13.77554255,2050.8,2050.5,3.0]
[1742404202903,4.8765,2050.7,2050.3,11.70885]
[1742404203260,8.89922255,2050.8,2050.4,4.87699]
[1742404203567,13.77554255,2050.8,2050.4,4.87699]
[1742404203968,8.89922255,2050.8,2050.4,4.87699]
[1742404204787,8.89922255,2050.8,2050.4,4.87694]
[1742404205394,13.77554255,2050.8,2050.4,4.87694]
[1742404205593,8.89922255,2050.8,2050.4,4.87694]
[1742404205777,13.77554255,2050.8,2050.4,4.87694]
[1742404205985,8.89922255,2050.8,2050.4,4.87694]
[1742404206495,5.63876,2051.0,2050.6,4.8765]
[1742404206699,9.75019,2051.3,2050.9,4.87579]
[1742404207002,4.87523,2051.2,2050.9,4.87579]
[1742404207558,8.89806255,2051.3,2050.9,4.87579]
[1742404207762,4.02298255,2051.3,2051.0,5.62565]
[1742404208063,8.89807255,2051.3,2051.0,0.7501]
[1742404208262,4.87521,2051.2,2050.9,4.87589]
[1742404208769,4.87521,2051.2,2050.8,5.62623]
[1742404208974,4.87521,2051.2,2050.8,10.50223]
[1742404209177,4.87574,2051.0,2050.6,11.69796]
[1742404209562,4.87574,2051.0,2050.7,4.87636]
[1742404210303,9.75158,2051.0,2050.6,11.69796]
[1742404210482,8.89903255,2050.9,2050.6,6.06]
[1742404210670,13.77510255,2050.9,2050.6,6.06]
[1742404210870,8.89903255,2050.9,2050.6,6.06]
[1742404211085,4.87605,2050.9,2050.6,8.37817205]
[1742404211305,8.89903255,2050.9,2050.6,6.06]
[1742404211709,4.87629,2050.8,2050.4,12.2452705]
[1742404212003,4.87629,2050.8,2050.4,17.1222105]
[1742404212384,4.87629,2050.8,2050.5,4.87677]
[1742404212581,8.89890255,2050.9,2050.5,4.87677]
[1742404212785,4.8762,2050.8,2050.5,4.87677]
[1742404212985,4.8762,2050.8,2050.5,6.58896605]
[1742404213185,13.77497255,2050.9,2050.5,6.58890605]
[1742404213382,4.87617,2050.8,2050.5,6.58890605]
[1742404214169,8.89890255,2050.9,2050.5,6.58890605]
[1742404214472,13.77498255,2050.9,2050.5,6.58890605]
[1742404214670,4.87592,2050.9,2050.5,6.58890605]
[1742404214870,9.75201,2050.9,2050.5,6.58890605]
[1742404215310,4.87615,2050.8,2050.5,4.87671]
[1742404215908,0.55,2051.0,2050.2,6.06]
[1742404215909,4.02298255,2050.6,2050.2,6.06]
[1742404216111,4.87749,2050.3,2050.0,0.8182]
[1742404216527,4.87749,2050.3,2049.9,9.75625]
[1742404216725,4.87749,2050.3,2049.9,7.023965]
[1742404217033,4.87773,2050.2,2049.9,2.145845]
[1742404217231,4.87789,2050.1,2049.8,5.69663]
[1742404218336,8.90057255,2050.2,2049.8,10.57495]
[1742404218511,4.87737,2050.3,2049.9,4.8782]
[1742404218839,4.87765,2050.2,2049.9,4.8782]
[1742404219007,5.42739,2050.3,2049.9,9.75632]
[1742404219206,5.42739,2050.3,2049.9,10.81376]
[1742404219402,4.87739,2050.3,2050.0,4.878]
[1742404219831,9.72301255,2050.4,2050.0,4.87788]
[1742404220039,5.70003,2050.4,2050.1,4.8777]
[1742404220236,5.70003,2050.4,2050.0,4.87788]
[1742404220420,5.70003,2050.4,2050.0,9.75579]
[1742404220619,4.87689,2050.5,2050.0,1.56544626]
[1742404220825,4.87689,2050.5,2050.2,4.87755]
[1742404221022,4.87689,2050.5,2050.1,5.68748]
[1742404221205,9.73153255,2050.6,2050.1,5.68748]
[1742404221410,4.87694,2050.5,2050.1,5.68748]
[1742404222320,4.87694,2050.5,2050.2,4.87748]
[1742404223155,4.87694,2050.5,2050.1,5.68748]
[1742404223924,6.29339033,2050.5,2050.1,5.68748]
[1742404224123,6.29339033,2050.5,2050.1,10.56513]
[1742404224456,4.87694,2050.5,2050.2,4.87755]
[1742404224652,4.02298255,2050.6,2050.3,4.87732]
[1742404224822,5.99,2050.7,2050.4,4.87696]
[1742404225018,13.77555255,2050.8,2050.4,4.87696]
[1742404225649,8.89924255,2050.8,2050.4,4.87696]
[1742404225850,13.77555255,2050.8,2050.4,5.69946]
[1742404226230,4.8764,2050.7,2050.4,5.69946]
[1742404227051,4.8764,2050.7,2050.4,0.8225]
[1742404227373,4.87663,2050.6,2050.4,0.8225]
[1742404227659,4.8764,2050.7,2050.4,0.8225]
[1742404228033,9.753,2050.7,2050.4,0.8225]
[1742404228343,4.8764,2050.7,2050.3,9.7544]
[1742404228868,4.02298255,2050.8,2050.2,6.857]
[1742404229155,4.87695,2050.5,2050.2,6.06]
[1742404229358,4.87695,2050.5,2050.1,9.75533]
[1742404229759,8.89961255,2050.6,2050.2,4.8775]
[1742404229924,13.77639255,2050.6,2050.2,4.8774]
[1742404230123,8.89961255,2050.6,2050.2,4.8774]
[1742404230368,13.77640255,2050.6,2050.2,4.8774]
[1742404230537,13.77639255,2050.6,2050.2,4.8774]
[1742404230723,4.02298255,2050.6,2050.1,4.87781]
[1742404230922,0.7596,2050.7,2050.4,4.87699]
[1742404231154,5.63602,2050.7,2050.3,5.6498]
[1742404231327,5.63602,2050.7,2050.3,0.7725]
[1742404231674,4.8767,2050.6,2050.3,5.64981]
[1742404232260,5.63603,2050.7,2050.3,10.52684]
[1742404232469,4.87643,2050.7,2050.4,4.87709]
[1742404232786,0.09412893,2050.6,2050.5,4.87674]
[1742404233125,15.92625,2050.9,2050.5,4.87674]
[1742404233330,10.49974,2051.1,2050.7,0.7616]
[1742404233530,4.87508,2051.3,2050.7,5.63795]
[1742404233765,8.89834255,2051.2,2050.7,6.93930981]
[1742404233969,8.89877255,2051.0,2050.6,4.87656]
[1742404234154,8.89877255,2051.0,2050.6,9.75302]
[1742404234463,0.8003,2051.1,2050.7,4.87616]
[1742404234638,5.67573,2051.1,2050.7,4.87616]
[1742404234962,5.67573,2051.1,2050.7,11.20618425]
[1742404235633,5.67573,2051.1,2050.7,6.32989425]
[1742404236028,5.67573,2051.1,2050.7,11.20614425]
[1742404236455,5.67573,2051.1,2050.8,4.87613]
[1742404237058,4.8752,2051.2,2050.8,4.87613]
[1742404237228,9.75057,2051.2,2050.8,5.99663243]
[1742404237566,4.8755,2051.1,2050.8,4.87611]
[1742404237769,4.8752,2051.2,2050.8,4.87611]
[1742404237953,4.8752,2051.2,2050.8,9.7521]
[1742404238125,4.8752,2051.2,2050.8,10.5394]
[1742404238474,4.87474,2051.4,2051.0,4.87553]
[1742404238652,8.36919226,2051.4,2051.0,4.87553]
[1742404239163,4.87503,2051.3,2051.0,4.87553]
[1742404239373,4.87474,2051.4,2050.9,4.87587]
[1742404239550,31.94429255,2051.5,2050.8,0.7873]
[1742404239551,27.12129255,2051.5,2051.1,4.87527]
[1742404239736,10.26029255,2051.5,2051.2,4.87518]
[1742404239941,4.87427,2051.6,2051.3,4.87485]
[1742404240140,9.70914255,2051.7,2051.3,4.87485]
[1742404240469,4.87428,2051.6,2051.2,4.87511]
[1742404240668,9.74875,2051.6,2051.2,4.58511]
[1742404240829,4.87428,2051.6,2051.2,4.58511]
[1742404241362,4.87449,2051.5,2051.2,4.58511]
[1742404241674,4.87428,2051.6,2051.2,4.58511]
[1742404242371,4.87428,2051.6,2051.2,9.46016]
[1742404242543,4.87428,2051.6,2051.3,4.87488]
[1742404243270,4.87379,2051.8,2051.4,9.74921]
[1742404243569,4.87379,2051.8,2051.4,4.87459]
[1742404243780,12.14963726,2051.8,2051.4,4.87459]
[1742404244135,4.87406,2051.7,2051.4,4.87459]
[1742404244464,7.27566726,2051.8,2051.4,4.87459]
[1742404244676,12.14962726,2051.8,2051.4,4.87459]
[1742404245169,4.87481,2051.4,2051.1,0.7793]
[1742404245466,4.87481,2051.4,2051.1,5.65472]
[1742404245962,9.73910924,2051.3,2051.0,3.0]
[1742404246268,14.61427924,2051.3,2051.0,3.0]
[1742404246473,4.02298255,2051.1,2050.9,6.06]
[1742404246635,0.0722971,2051.2,2050.9,6.06]
[1742404246963,0.07207087,2051.0,2050.9,4.87575]
[1742404247270,0.07207087,2051.0,2050.8,4.876]
[1742404247574,0.07207087,2051.0,2050.8,9.75203]
[1742404247768,0.07207087,2051.0,2050.8,4.876]
[1742404247989,4.87527,2051.2,2050.8,4.876]
[1742404248286,4.87527,2051.2,2050.8,4.87596]
[1742404248475,0.07207089,2051.1,2050.8,9.75197]
[1742404248672,0.07207089,2051.1,2050.9,5.69768]
[1742404248989,9.71466255,2051.3,2050.9,4.87568]
[1742404249287,9.75061,2051.2,2050.8,4.87613]
[1742404249592,9.82274779,2051.2,2050.8,4.87613]
[1742404250155,4.94735779,2051.2,2050.8,4.87596]
[1742404250367,0.07213779,2051.2,2051.0,4.87553]
[1742404250593,0.07213779,2051.2,2051.1,5.64223]
[1742404250891,4.87483,2051.4,2051.1,0.7668]
[1742404251063,4.87483,2051.4,2051.0,9.75118]
[1742404251465,4.87483,2051.4,2051.1,4.87541]
[1742404251666,9.6953,2051.6,2051.2,5.64182]
[1742404251864,12.52792798,2051.6,2051.2,10.51686]
[1742404252083,12.52792798,2051.6,2051.2,0.7668]
[1742404252267,8.89759255,2051.5,2051.1,4.87528]
[1742404252590,8.89759255,2051.5,2051.1,9.75053]
[1742404252790,8.89759255,2051.5,2051.1,4.87525]
[1742404253154,15.9939806,2051.5,2051.1,4.87525]
[1742404253385,15.9939806,2051.5,2051.2,4.87505]
[1742404253386,11.1193506,2051.5,2051.2,4.87505]
[1742404254152,15.9939906,2051.5,2051.1,4.87525]
[1742404254456,4.87472,2051.4,2051.0,5.65886]
[1742404254657,6.46876606,2051.4,2051.0,5.65886]
[1742404254991,8.89795255,2051.3,2051.0,0.7832]
[1742404255291,13.77303255,2051.3,2050.9,10.93577]
[1742404255496,8.89795255,2051.3,2050.9,15.81153]
[1742404255671,8.89795255,2051.3,2050.9,9.75153]
[1742404256073,8.89795255,2051.3,2051.0,4.87561]
[1742404257102,4.87435,2051.6,2051.3,4.87485]
[1742404257607,9.69402,2051.7,2051.3,4.87485]
[1742404257608,14.56817,2051.7,2051.3,4.87485]
[1742404257965,9.69402,2051.7,2051.3,9.74962]
[1742404258377,14.56818,2051.7,2051.3,9.74962]
[1742404258697,4.87402,2051.7,2051.4,4.87469]
[1742404258905,6.54628498,2051.7,2051.4,4.87469]
[1742404259666,6.54628498,2051.7,2051.3,9.74967]
[1742404259902,6.54628498,2051.7,2051.3,9.74963]
[1742404260207,6.54628498,2051.7,2051.4,4.87469]
[1742404260369,11.84877981,2051.8,2051.4,4.87463]
[1742404260898,4.93341107,2051.7,2051.4,4.87463]
[1742404262893,4.93341107,2051.7,2051.4,4.87459]
[1742404263098,9.80764107,2051.7,2051.3,4.87491]
[1742404263303,4.02298255,2051.4,2051.0,6.06]
[1742404263617,8.89830255,2051.2,2051.0,6.06]
[1742404264111,0.05866143,2051.1,2051.0,6.06]
[1742404264275,0.05866143,2051.1,2051.0,4.87552]
[1742404264472,10.5165,2051.5,2051.1,4.87529]
[1742404264673,5.6975,2051.5,2051.1,4.87529]
[1742404264876,2.11347526,2051.5,2051.2,9.75015]
[1742404265199,4.819,2051.6,2051.3,4.87495]
[1742404266002,9.69332,2051.6,2051.3,4.87495]
[1742404266306,4.819,2051.6,2051.3,9.74978]
[1742404266504,4.819,2051.6,2051.3,4.87483]
[1742404266718,4.819,2051.6,2051.4,4.87459]
[1742404267311,5.69703,2051.7,2051.4,4.87459]
[1742404267620,22.53258,2052.1,2051.7,4.87385]
[1742404267788,4.892585,2052.2,2051.8,4.87357]
[1742404267990,8.91556755,2052.2,2051.8,4.87357]
[1742404268190,8.91556755,2052.2,2051.8,9.74718]
[1742404268402,8.91556755,2052.2,2051.9,4.87352]
[1742404268911,4.04272755,2052.2,2051.9,4.87336]
[1742404269219,0.019745,2052.2,2052.0,4.87316]
[1742404269709,0.019745,2052.2,2052.1,4.87305]
[1742404269914,0.019745,2052.2,2052.0,4.8732]
[1742404270121,4.892575,2052.2,2051.9,5.62743]
[1742404270319,0.019745,2052.2,2051.9,5.62739]
[1742404270524,0.019745,2052.2,2052.0,4.87321]
[1742404270822,0.019745,2052.2,2051.9,5.62739]
[1742404270823,4.892695,2052.2,2051.8,4.87371]
[1742404270991,4.892695,2052.2,2051.8,4.87365]
[1742404271633,4.87306,2052.1,2051.8,4.87365]
[1742404271787,5.69896,2052.1,2051.7,10.45447]
[1742404271987,10.5722,2052.1,2051.7,9.69185]
[1742404272187,8.89638255,2052.0,2051.7,4.818]
[1742404272387,4.02298255,2052.0,2051.7,4.87392]
[1742404272584,5.69896,2052.1,2051.7,9.74779]
[1742404272916,5.69896,2052.1,2051.7,4.87387]
[1742404273432,5.69896,2052.1,2051.5,1.75706788]
[1742404273740,4.87332,2052.0,2051.6,4.87421]
[1742404274036,5.69896,2052.1,2051.7,4.87392]
[1742404274332,5.69896,2052.1,2051.7,4.87386]
[1742404274634,0.8259,2052.1,2051.8,4.87364]
[1742404275132,5.69896,2052.1,2051.8,4.87364]
[1742404275318,10.57222,2052.1,2051.7,4.87386]
[1742404275638,5.69896,2052.1,2051.7,9.74768]
[1742404275795,5.69896,2052.1,2051.8,4.87373]
[1742404275992,10.29441131,2052.2,2051.8,4.87365]
[1742404276236,4.87308,2052.1,2051.8,4.87365]
[1742404276434,4.87308,2052.1,2051.7,4.87383]
[1742404276732,4.92245677,2052.1,2051.7,9.74773]
[1742404276931,4.92245677,2052.1,2051.7,4.87383]
[1742404277140,4.92245677,2052.1,2051.7,9.74767]
[1742404277435,4.92245677,2052.1,2051.8,4.87375]
[1742404277633,4.92245677,2052.1,2051.7,9.74771]
[1742404277833,0.04937677,2052.1,2051.8,4.87366]
[1742404278037,0.04937677,2052.1,2051.9,5.7055]
[1742404278243,0.04937677,2052.1,2052.0,4.87329]
[1742404279051,0.04937677,2052.1,2051.9,5.7055]
[1742404279341,0.04937677,2052.1,2051.9,4.8735]
[1742404279500,0.04937677,2052.1,2052.0,4.87329]
[1742404280501,0.04937677,2052.1,2051.9,4.87332]
[1742404280914,0.04937677,2052.1,2051.9,9.74669]
[1742404281239,0.04937677,2052.1,2051.9,4.87332]
[1742404282247,0.04937677,2052.1,2051.8,4.87361]
[1742404282430,0.04937677,2052.1,2051.9,4.87343]
[1742404283123,4.92253677,2052.1,2051.7,11.76585]
[1742404283309,5.68043677,2052.1,2051.7,6.892]
[1742404283505,4.87331,2052.0,2051.7,10.93393]
[1742404283706,4.9228669,2052.0,2051.7,10.93393]
[1742404284241,0.0495569,2052.0,2051.7,15.80783]
[1742404284441,0.0495569,2052.0,2051.8,4.87359]
[1742404284645,0.0495569,2052.0,2051.8,9.74724]
[1742404284827,4.892645,2052.2,2051.9,4.87353]
[1742404285032,0.04965316,2052.1,2051.9,4.87353]
[1742404286312,0.04965316,2052.1,2051.8,10.56845]
[1742404286633,0.04965316,2052.1,2051.9,4.87342]
[1742404286814,0.04965316,2052.1,2051.8,10.56861]
[1742404287009,4.92278316,2052.1,2051.8,0.8212]
[1742404287251,4.87386,2051.8,2051.6,6.06]
[1742404287650,0.04920301,2051.7,2051.6,6.06]
[1742404287850,4.87386,2051.8,2051.4,4.87456]
[1742404287851,9.70224255,2051.8,2051.4,4.87456]
[1742404288162,9.70224255,2051.8,2051.4,4.8619645]
[1742404288163,0.04919045,2051.7,2051.4,4.8619645]
[1742404288452,9.70224255,2051.8,2051.4,4.8619645]
[1742404288613,4.82838255,2051.8,2051.5,4.87446]
[1742404288817,5.67927,2051.8,2051.5,4.87446]
[1742404289041,0.04919045,2051.7,2051.4,7.87463]
[1742404289254,5.67927,2051.8,2051.4,7.87463]
[1742404289475,0.04907741,2051.6,2051.4,7.87463]
[1742404289618,5.67927,2051.8,2051.4,10.3554334]
[1742404289815,0.04919045,2051.7,2051.4,10.3554334]
[1742404290010,5.67927,2051.8,2051.4,10.3554334]
[1742404290214,0.04919045,2051.7,2051.4,10.3553934]
[1742404290453,5.67927,2051.8,2051.4,10.3553934]
[1742404290650,0.04907741,2051.6,2051.4,10.3553934]
[1742404290859,5.67927,2051.8,2051.4,10.3553934]
[1742404291062,0.04896435,2051.5,2051.4,10.3553934]
[1742404291359,5.67927,2051.8,2051.4,10.3553834]
[1742404291692,5.67927,2051.8,2051.4,7.87458]
[1742404291962,4.87439,2051.6,2051.3,3.99915523]
[1742404292315,0.04872153,2051.5,2051.3,8.87398523]
[1742404292550,9.74883,2051.6,2051.3,3.0]
[1742404292752,0.0485959,2051.4,2051.3,3.0]
[1742404292966,9.74883,2051.6,2051.3,3.0]
[1742404292967,0.791,2051.5,2051.3,3.0]
[1742404293172,0.0485959,2051.4,2051.3,3.0]
[1742404294666,0.0485959,2051.4,2051.3,7.87495]
[1742404294833,14.57537255,2051.8,2051.4,4.8747]
[1742404295033,0.04882967,2051.7,2051.4,4.8747]
[1742404295368,11.15895981,2051.8,2051.4,9.74928]
[1742404295565,11.15895981,2051.8,2051.4,4.87458]
[1742404295733,0.04882967,2051.7,2051.4,9.74918]
[1742404296076,0.04867893,2051.6,2051.5,4.87447]
[1742404296234,11.15896981,2051.8,2051.5,4.87447]
[1742404296235,6.33138726,2051.8,2051.5,4.87447]
[1742404296439,0.0487543,2051.7,2051.6,4.87414]
[1742404296744,10.52959,2052.0,2051.6,4.87414]
[1742404296944,4.87355,2051.9,2051.6,4.87414]
[1742404297148,4.92253036,2051.9,2051.6,4.87414]
[1742404298036,0.04898036,2051.9,2051.6,4.8741]
[1742404298477,0.04898036,2051.9,2051.7,4.87387]
[1742404299243,0.04898036,2051.9,2051.6,9.7482]
[1742404299468,0.04898036,2051.9,2051.7,5.65686]
[1742404299643,4.892605,2052.2,2051.9,4.87351]
[1742404299853,0.04935292,2052.1,2051.9,4.87351]
[1742404300165,4.07233547,2052.1,2051.7,5.65689]
[1742404300364,4.8733,2052.0,2051.7,4.87399]
[1742404300882,0.0491269,2051.9,2051.7,4.87393]
[1742404301069,0.019745,2052.2,2051.7,4.87393]
[1742404301263,4.87306,2052.1,2051.8,4.87367]
[1742404301480,0.019745,2052.2,2051.9,4.87352]
[1742404301694,0.019745,2052.2,2051.8,4.77338255]
[1742404301882,0.019745,2052.2,2052.1,4.87305]
[1742404302960,0.019745,2052.2,2052.1,5.62975]
[1742404303180,0.019745,2052.2,2052.1,7.167405]
[1742404304489,0.019745,2052.2,2052.1,4.87305]
[1742404307046,0.019745,2052.2,2052.0,12.7464]
[1742404307241,0.019745,2052.2,2052.1,4.87305]
[1742404307667,0.019745,2052.2,2052.0,7.87316]
[1742404307885,0.019745,2052.2,2052.0,12.74629]
[1742404308093,0.019745,2052.2,2052.0,12.74631]
[1742404308294,0.019745,2052.2,2052.1,4.87305]
[1742404308874,0.019745,2052.2,2052.0,7.87313]
[1742404309082,0.019745,2052.2,2052.0,4.87313]
[1742404310201,0.019745,2052.2,2051.9,5.6331]
[1742404310602,0.019745,2052.2,2052.0,4.87326]
[1742404311381,0.019745,2052.2,2051.8,10.93374]
[1742404311673,13.76985255,2052.0,2051.8,6.06]
[1742404311856,9.74742,2051.9,2051.5,10.93444]
[1742404312064,4.87387,2051.8,2051.5,10.93444]
[1742404312272,5.62668,2051.7,2051.5,6.06]
[1742404312505,5.62668,2051.7,2051.4,4.813]
[1742404312673,5.62668,2051.7,2051.4,3.0]
[1742404313004,5.62668,2051.7,2051.3,9.74961]
[1742404313367,5.62668,2051.7,2051.4,4.87471]
[1742404314098,8.89676255,2051.8,2051.4,9.74932]
[1742404314262,8.89676255,2051.8,2051.5,4.87447]
[1742404314461,8.89675255,2051.8,2051.5,4.87447]
[1742404314664,4.87403,2051.7,2051.4,5.6837]
[1742404314893,8.89675255,2051.8,2051.4,5.6837]
[1742404315063,4.02298255,2051.8,2051.4,0.8092]
[1742404315264,9.74837,2051.7,2051.3,4.87477]
[1742404315503,4.02298255,2051.6,2051.3,4.87477]
[1742404315709,4.79708255,2051.6,2051.2,6.8692]
[1742404315863,8.89779255,2051.4,2051.0,10.93565]
[1742404316068,8.89779255,2051.4,2051.0,10.93553]
[1742404316378,13.77270255,2051.4,2051.0,10.93553]
[1742404316566,4.87498,2051.3,2051.0,10.93553]
[1742404317813,8.89779255,2051.4,2051.0,15.81103]
[1742404318111,13.77268255,2051.4,2051.0,10.9355]
[1742404318468,4.87496,2051.3,2051.0,10.9355]
[1742404318773,4.87551,2051.1,2050.7,4.87632]
[1742404318989,4.02298255,2051.0,2050.5,10.93679]
[1742404319303,1.92727526,2051.3,2050.2,5.71026]
[1742404319304,4.02298255,2050.6,2050.2,5.71026]
[1742404319507,4.87641,2050.7,2050.3,4.87733]
[1742404319802,4.87641,2050.7,2050.3,4.87723]
[1742404320008,4.87647,2050.7,2050.3,4.87723]
[1742404320188,4.87671,2050.6,2050.3,4.87723]
[1742404320377,4.87671,2050.6,2050.2,5.71036]
[1742404320378,5.70078,2050.5,2050.2,4.87749]
[1742404320716,10.57782,2050.5,2050.1,10.93772]
[1742404320870,5.70078,2050.5,2050.1,10.93762]
[1742404321069,10.57776,2050.5,2050.1,10.93777]
[1742404321266,10.57783,2050.5,2050.1,10.93777]
[1742404321578,4.87733,2050.3,2050.0,4.813]
[1742404321970,4.87733,2050.3,2049.9,4.87815]
[1742404322511,8.90068255,2050.2,2049.8,5.7033]
[1742404322668,8.90060255,2050.2,2049.8,5.7033]
[1742404323096,0.8109,2050.1,2049.8,4.8785]
[1742404324140,5.68873,2050.1,2049.8,3.0]
[1742404324436,0.8109,2050.1,2049.8,7.87847]
[1742404324599,0.8109,2050.1,2049.8,7.87841]
[1742404325332,0.8109,2050.1,2049.8,7.87837]
[1742404325993,5.68874,2050.1,2049.8,4.8785]
[1742404326194,4.87862,2049.8,2049.4,4.87947]
[1742404326406,4.02298255,2049.9,2049.3,6.06]
[1742404326612,0.814,2050.1,2049.8,4.87843]
[1742404326805,0.814,2050.1,2049.8,9.75683]
[1742404327005,0.814,2050.3,2050.0,4.87787]
[1742404327232,0.814,2050.3,2049.7,4.87873]
[1742404327433,0.814,2050.3,2050.1,4.87763]
[1742404327738,9.71391255,2050.6,2050.2,4.87748]
[1742404327933,9.71391255,2050.6,2050.4,4.8769]
[1742404327934,0.8142,2050.6,2050.4,4.8769]
[1742404328120,10.46406,2050.8,2050.3,4.87732]
[1742404328328,10.46406,2050.8,2050.4,4.87704]
[1742404329529,10.46406,2050.8,2050.4,9.75398]
[1742404330243,5.5879,2050.8,2050.6,4.87653]
[1742404330435,4.87574,2051.0,2050.6,4.87648]
[1742404330436,0.8315,2051.0,2050.6,4.87648]
[1742404330596,0.8315,2051.0,2050.8,4.87607]
[1742404330796,0.8315,2051.0,2050.9,4.8759]
[1742404331026,0.8315,2051.0,2050.8,4.87601]
[1742404331334,0.8315,2051.0,2050.7,4.87626]
[1742404331531,0.8315,2051.0,2050.7,9.75247]
[1742404331839,0.8315,2051.0,2050.8,4.87612]
[1742404332041,11.19078281,2051.0,2050.6,4.87641]
[1742404332242,4.02298255,2050.8,2050.6,4.87641]
[1742404332409,8.89920255,2050.8,2050.4,10.93699]
[1742404333336,13.77555255,2050.8,2050.4,10.93699]
[1742404333495,8.89920255,2050.8,2050.4,10.93699]
[1742404333699,4.83528255,2050.6,2049.9,0.7948]
[1742404334039,4.02298255,2050.2,2049.9,4.87827]
[1742404334338,8.90017255,2050.4,2049.9,4.87817]
[1742404334538,8.90017255,2050.4,2050.0,4.87799]
[1742404335240,4.02298255,2050.4,2050.1,4.87776]
[1742404335547,4.87691,2050.5,2050.1,9.75541]
[1742404335729,1.592984,2050.5,2050.2,4.87756]
[1742404335928,6.469854,2050.5,2050.1,4.87773]
[1742404336115,1.592984,2050.5,2050.2,4.87743]
[1742404337401,6.469964,2050.5,2050.0,4.87782]
[1742404337641,4.87713,2050.4,2050.0,9.75568]
[1742404337806,6.5744694,2050.4,2050.0,4.87782]
[1742404338154,1.6973394,2050.4,2050.1,4.87769]
[1742404338942,0.8087,2050.2,2049.9,4.87825]
[1742404339299,0.8087,2050.2,2049.8,15.81679]
[1742404339527,5.68635,2050.2,2049.8,10.93839]
[1742404339731,7.35877303,2050.2,2049.8,10.93839]
[1742404340005,7.35877303,2050.2,2049.8,10.93843]
[1742404340207,4.8779,2050.1,2049.8,6.06]
[1742404341949,7.35870303,2050.2,2049.8,4.8785]
[1742404342105,4.87782,2050.1,2049.8,4.8785]
[1742404342537,1.66997139,2050.1,2049.7,8.83317147]
[1742404342846,0.8087,2050.2,2050.0,4.87796]